bitfinex/quotes_BTCUSD_20241013
["timestamp","ask_amount","ask_price","bid_price","bid_amount"]
[1728843804050,0.03182296,62638.0,62637.0,0.22897626]
[1728843804261,0.03182296,62638.0,62637.0,0.22997626]
[1728843804892,0.03182296,62638.0,62637.0,0.23197626]
[1728843805589,0.03182296,62638.0,62637.0,0.07232626]
[1728843806522,0.03182296,62638.0,62637.0,0.07032626]
[1728843806739,0.19146996,62638.0,62637.0,0.002]
[1728843806969,0.52769397,62638.0,62637.0,0.002]
[1728843807197,0.52769397,62638.0,62635.0,0.001636]
[1728843807198,0.159652,62636.0,62635.0,0.001636]
[1728843807670,0.68734197,62638.0,62635.0,0.001636]
[1728843807880,0.159652,62637.0,62635.0,0.001636]
[1728843808531,0.001,62636.0,62635.0,0.001636]
[1728843808999,0.159652,62637.0,62635.0,0.001636]
[1728843809967,0.53069597,62638.0,62635.0,0.001636]
[1728843810175,0.34304201,62638.0,62635.0,0.001636]
[1728843810398,0.50569001,62638.0,62635.0,0.001636]
[1728843810621,0.164652,62636.0,62635.0,0.001636]
[1728843810813,0.32587601,62636.0,62635.0,0.001636]
[1728843811974,0.59687601,62636.0,62635.0,0.001636]
[1728843812217,0.59787601,62636.0,62635.0,0.001636]
[1728843812454,0.64353782,62636.0,62635.0,0.001636]
[1728843812692,0.59987601,62636.0,62635.0,0.001636]
[1728843812915,0.76124572,62636.0,62635.0,0.001636]
[1728843813129,0.78625642,62636.0,62635.0,0.001636]
[1728843813806,0.83591026,62636.0,62635.0,0.001636]
[1728843813818,0.90239745,62636.0,62635.0,0.001636]
[1728843814051,1.03053205,62636.0,62635.0,0.003636]
[1728843814281,0.91539745,62636.0,62635.0,0.003636]
[1728843814732,0.90639745,62636.0,62635.0,0.002636]
[1728843814965,0.91339745,62636.0,62635.0,0.002636]
[1728843815168,0.91739745,62636.0,62635.0,0.003636]
[1728843816524,0.248688,62622.0,62621.0,0.24042122]
[1728843816744,0.40991201,62622.0,62621.0,0.24042122]
[1728843817188,0.40991201,62622.0,62613.0,0.24042122]
[1728843817189,0.319404,62617.0,62613.0,0.24042122]
[1728843817403,0.319407,62616.0,62613.0,0.24042122]
[1728843817871,0.159706,62615.0,62611.0,0.159715]
[1728843818097,0.32592701,62617.0,62611.0,0.319429]
[1728843818314,0.32792701,62617.0,62613.0,0.159711]
[1728843818796,0.02501411,62616.0,62613.0,0.159711]
[1728843819491,0.159712,62613.0,62609.0,0.001638]
[1728843819926,0.324413,62615.0,62609.0,0.001638]
[1728843819927,0.319419,62614.0,62609.0,0.001638]
[1728843820169,0.159712,62613.0,62610.0,0.159716]
[1728843820389,0.159709,62614.0,62610.0,0.159716]
[1728843820621,0.159714,62612.0,62609.0,0.001638]
[1728843820827,0.005,62615.0,62609.0,0.001638]
[1728843821035,0.159712,62613.0,62609.0,0.161358]
[1728843821299,0.15971,62614.0,62610.0,0.161717]
[1728843821523,0.005,62615.0,62613.0,0.15971]
[1728843823964,0.009,62615.0,62613.0,0.16071]
[1728843824414,0.01,62615.0,62613.0,0.15971]
[1728843827541,0.01,62615.0,62613.0,0.161346]
[1728843828538,0.159708,62614.0,62613.0,0.001636]
[1728843828774,0.169706,62615.0,62613.0,0.001636]
[1728843830197,0.01,62615.0,62613.0,0.161346]
[1728843830920,0.01,62615.0,62613.0,0.162346]
[1728843831393,0.01,62615.0,62613.0,0.161346]
[1728843832325,0.01,62615.0,62613.0,0.001636]
[1728843832751,0.159708,62614.0,62613.0,0.001636]
[1728843833647,0.03001532,62615.0,62613.0,0.001636]
[1728843833861,0.18972232,62615.0,62613.0,0.001636]
[1728843834090,0.18972232,62615.0,62613.0,0.002636]
[1728843834528,0.03001532,62615.0,62613.0,0.002636]
[1728843834743,0.159708,62614.0,62613.0,0.001636]
[1728843835653,0.03101532,62615.0,62613.0,0.001636]
[1728843836100,0.002,62614.0,62613.0,0.001636]
[1728843837431,0.002,62614.0,62613.0,0.002636]
[1728843838557,0.004,62614.0,62613.0,0.002636]
[1728843839880,0.004,62614.0,62613.0,0.162347]
[1728843841640,0.004,62614.0,62613.0,0.242747]
[1728843842992,0.004,62614.0,62613.0,0.083036]
[1728843843208,0.02901495,62614.0,62613.0,0.083036]
[1728843843659,0.02901495,62614.0,62613.0,0.242747]
[1728843844615,0.02901495,62614.0,62613.0,0.25474457]
[1728843848917,0.02901495,62614.0,62613.0,0.25474757]
[1728843850236,0.004,62614.0,62613.0,0.25474757]
[1728843850487,0.004,62614.0,62613.0,0.45671703]
[1728843850729,0.004,62614.0,62613.0,0.47591696]
[1728843851186,0.004,62614.0,62613.0,0.48473029]
[1728843851394,0.004,62614.0,62613.0,0.47591696]
[1728843851608,0.004,62614.0,62613.0,0.47491696]
[1728843852478,0.004,62614.0,62613.0,0.44371646]
[1728843852693,0.004,62614.0,62613.0,0.48370167]
[1728843853123,0.004,62614.0,62613.0,0.51772167]
[1728843853356,0.004,62614.0,62613.0,0.51572167]
[1728843853585,0.004,62614.0,62613.0,0.50891426]
[1728843853802,0.004,62614.0,62613.0,0.52771976]
[1728843854040,0.004,62614.0,62613.0,0.51571976]
[1728843854292,0.005,62614.0,62613.0,0.52671976]
[1728843854529,0.005,62614.0,62613.0,0.52891426]
[1728843857155,0.005,62614.0,62613.0,0.52888928]
[1728843860197,0.005,62614.0,62613.0,0.64203031]
[1728843860408,0.005,62614.0,62613.0,0.60064614]
[1728843860622,0.005,62614.0,62613.0,0.55284491]
[1728843860850,0.005,62614.0,62613.0,0.60064614]
[1728843861289,0.004,62614.0,62613.0,0.54184491]
[1728843861726,0.005,62614.0,62613.0,0.55284491]
[1728843862840,0.005,62614.0,62613.0,0.54184491]
[1728843863060,0.005,62614.0,62613.0,0.55384491]
[1728843863497,0.004,62614.0,62613.0,0.53084491]
[1728843863728,0.004,62614.0,62613.0,0.54484491]
[1728843863978,0.004,62614.0,62613.0,0.55684491]
[1728843864387,0.004,62614.0,62613.0,0.53288928]
[1728843864631,0.004,62614.0,62613.0,0.55684491]
[1728843864845,0.004,62614.0,62613.0,0.53288928]
[1728843865056,0.004,62614.0,62613.0,0.55684491]
[1728843865266,0.004,62614.0,62613.0,0.53288928]
[1728843865490,0.004,62614.0,62613.0,0.55684491]
[1728843865706,0.004,62614.0,62613.0,0.53288928]
[1728843865929,0.004,62614.0,62613.0,0.55684491]
[1728843866144,0.004,62614.0,62613.0,0.53288928]
[1728843866363,0.004,62614.0,62613.0,0.55684491]
[1728843866592,0.004,62614.0,62613.0,0.53288928]
[1728843866818,0.004,62614.0,62613.0,0.55684491]
[1728843867047,0.004,62614.0,62613.0,0.53288928]
[1728843867289,0.004,62614.0,62613.0,0.50173646]
[1728843867504,0.004,62614.0,62613.0,0.55679639]
[1728843867774,0.004,62614.0,62613.0,0.53285729]
[1728843867989,0.004,62614.0,62613.0,0.55679639]
[1728843868212,0.004,62614.0,62613.0,0.53285729]
[1728843868639,0.004,62614.0,62613.0,0.55679639]
[1728843868875,0.004,62614.0,62613.0,0.53285729]
[1728843869135,0.004,62614.0,62613.0,0.55679639]
[1728843869349,0.004,62614.0,62613.0,0.53285729]
[1728843869561,0.004,62614.0,62613.0,0.55679639]
[1728843869787,0.004,62614.0,62613.0,0.53285729]
[1728843870015,0.004,62614.0,62613.0,0.55679639]
[1728843870506,0.004,62614.0,62613.0,0.53285729]
[1728843870735,0.004,62614.0,62613.0,0.55679639]
[1728843870961,0.004,62614.0,62613.0,0.55679779]
[1728843872058,0.004,62614.0,62613.0,0.53285808]
[1728843872288,0.004,62614.0,62613.0,0.55679779]
[1728843872523,0.004,62614.0,62613.0,0.53285808]
[1728843872752,0.004,62614.0,62613.0,0.64599911]
[1728843874722,0.004,62614.0,62613.0,0.64601022]
[1728843876142,0.004,62614.0,62613.0,0.53286919]
[1728843876370,0.004,62614.0,62613.0,0.36076919]
[1728843877927,0.004,62614.0,62613.0,0.47391022]
[1728843879477,0.004,62614.0,62613.0,0.49788297]
[1728843880998,0.004,62614.0,62613.0,0.47391022]
[1728843881420,0.004,62614.0,62613.0,0.49789234]
[1728843881631,0.004,62614.0,62613.0,0.47391022]
[1728843882107,0.004,62614.0,62613.0,0.47395463]
[1728843886385,0.004,62614.0,62613.0,0.21852488]
[1728843886594,0.004,62614.0,62613.0,0.19933849]
[1728843887699,0.004,62614.0,62613.0,0.02562749]
[1728843887905,0.004,62614.0,62613.0,0.01362749]
[1728843888113,0.004,62614.0,62613.0,0.01962749]
[1728843888334,0.168708,62614.0,62613.0,0.01762749]
[1728843888565,0.168708,62614.0,62613.0,0.009636]
[1728843888785,0.168708,62614.0,62613.0,0.005636]
[1728843888995,0.168708,62614.0,62613.0,0.002636]
[1728843889201,0.168708,62614.0,62613.0,0.005636]
[1728843889450,0.168708,62614.0,62613.0,0.001636]
[1728843889892,0.171708,62614.0,62613.0,0.001636]
[1728843890825,0.173708,62614.0,62613.0,0.001636]
[1728843891292,0.62337304,62614.0,62613.0,0.001636]
[1728843891944,0.62537304,62614.0,62613.0,0.001636]
[1728843892164,0.69493289,62614.0,62613.0,0.001636]
[1728843893298,0.64839151,62614.0,62613.0,0.001636]
[1728843893974,0.69605813,62614.0,62613.0,0.001636]
[1728843894418,0.80976122,62614.0,62613.0,0.001636]
[1728843894872,0.90976122,62614.0,62613.0,0.001636]
[1728843895087,0.95613577,62614.0,62613.0,0.001636]
[1728843895569,0.98821385,62614.0,62613.0,0.001636]
[1728843896014,0.91676122,62614.0,62613.0,0.001636]
[1728843896287,0.98518966,62614.0,62613.0,0.001636]
[1728843896511,1.01117436,62614.0,62613.0,0.002636]
[1728843897161,1.00917436,62614.0,62613.0,0.002636]
[1728843897387,0.98516357,62614.0,62613.0,0.003636]
[1728843897609,0.98916357,62614.0,62613.0,0.003636]
[1728843897837,0.91176122,62614.0,62613.0,0.001636]
[1728843898056,1.01796395,62614.0,62613.0,0.003636]
[1728843898278,1.01792782,62614.0,62613.0,0.003636]
[1728843898597,1.00892782,62614.0,62613.0,0.002636]
[1728843898804,1.02192782,62614.0,62613.0,0.003636]
[1728843899013,0.92676122,62614.0,62613.0,0.003636]
[1728843899424,0.99811621,62614.0,62613.0,0.003636]
[1728843899680,1.24811621,62614.0,62613.0,0.003636]
[1728843899926,1.36125724,62614.0,62613.0,0.003636]
[1728843900148,1.36005038,62614.0,62613.0,0.003636]
[1728843900573,1.01488378,62614.0,62613.0,0.003636]
[1728843900791,0.90174275,62614.0,62613.0,0.003636]
[1728843901053,0.97309178,62614.0,62613.0,0.003636]
[1728843901306,0.90174275,62614.0,62613.0,0.003636]
[1728843901999,0.94929736,62614.0,62613.0,0.003636]
[1728843902223,0.90174275,62614.0,62613.0,0.003636]
[1728843903333,0.92676324,62614.0,62613.0,0.003636]
[1728843903805,0.4749525,62614.0,62613.0,0.003636]
[1728843904015,0.4699525,62614.0,62613.0,0.003636]
[1728843904235,0.48665538,62614.0,62613.0,0.00340904]
[1728843904447,0.4699525,62614.0,62613.0,0.00340904]
[1728843904886,0.63132221,62614.0,62613.0,0.00340904]
[1728843907026,0.62032221,62614.0,62613.0,0.00240904]
[1728843907266,0.62232221,62614.0,62613.0,0.00240904]
[1728843907735,0.62632221,62614.0,62613.0,0.00340904]
[1728843908448,0.62032221,62614.0,62613.0,0.00240904]
[1728843908962,0.62332221,62614.0,62613.0,0.00340904]
[1728843910150,0.59830172,62614.0,62613.0,0.00340904]
[1728843910844,1.09830172,62614.0,62613.0,0.00340904]
[1728843911789,1.09630172,62614.0,62613.0,0.00340904]
[1728843913315,1.12132092,62614.0,62613.0,0.00340904]
[1728843917901,1.12632092,62614.0,62613.0,0.00340904]
[1728843920178,1.10130172,62614.0,62613.0,0.00340904]
[1728843923200,1.12632137,62614.0,62613.0,0.00340904]
[1728843924371,1.17390264,62614.0,62613.0,0.00340904]
[1728843925284,1.12632137,62614.0,62613.0,0.00340904]
[1728843925494,1.17394215,62614.0,62613.0,0.00340904]
[1728843926185,1.17594215,62614.0,62613.0,0.00340904]
[1728843926401,1.19969327,62614.0,62613.0,0.00340904]
[1728843926651,1.12832137,62614.0,62613.0,0.00340904]
[1728843927330,1.19769327,62614.0,62613.0,0.00340904]
[1728843927996,1.20047345,62614.0,62613.0,0.00340904]
[1728843928233,1.19769327,62614.0,62613.0,0.00340904]
[1728843928460,1.12714037,62614.0,62613.0,0.00340904]
[1728843928898,1.12914037,62614.0,62613.0,0.00340904]
[1728843929109,1.20061844,62614.0,62613.0,0.00340904]
[1728843929356,1.12914037,62614.0,62613.0,0.00340904]
[1728843929578,1.19863561,62614.0,62613.0,0.00340904]
[1728843930245,1.19728326,62614.0,62613.0,0.00340904]
[1728843930943,1.19747709,62614.0,62613.0,0.00340904]
[1728843931160,1.10212072,62614.0,62613.0,0.00340904]
[1728843931624,1.22131619,62614.0,62613.0,0.00340904]
[1728843932492,1.10212072,62614.0,62613.0,0.00340904]
[1728843933187,1.12714007,62614.0,62613.0,0.00340904]
[1728843933437,0.96077036,62614.0,62613.0,0.00340904]
[1728843933676,1.0323884,62614.0,62613.0,0.10240904]
[1728843933902,1.00451848,62614.0,62613.0,0.10140904]
[1728843934360,1.11814007,62614.0,62613.0,0.10140904]
[1728843934595,1.11314007,62614.0,62613.0,0.10040904]
[1728843934822,1.11714007,62614.0,62613.0,0.10140904]
[1728843935052,1.11314007,62614.0,62613.0,0.10040904]
[1728843935277,1.18475811,62614.0,62613.0,0.10040904]
[1728843935709,1.19075811,62614.0,62613.0,0.10140904]
[1728843936184,1.16090859,62614.0,62613.0,0.10040904]
[1728843936392,1.16090859,62614.0,62613.0,0.18190904]
[1728843936393,1.00353888,62614.0,62613.0,0.18190904]
[1728843936624,0.96177036,62614.0,62613.0,0.18290904]
[1728843940236,0.93675101,62614.0,62613.0,0.18290904]
[1728843943364,0.9617676,62614.0,62613.0,0.18290904]
[1728843943586,0.8617676,62614.0,62613.0,0.18290904]
[1728843944252,0.53583559,62614.0,62613.0,0.18290904]
[1728843944524,0.53583559,62614.0,62613.0,0.36107474]
[1728843945429,0.52983559,62614.0,62613.0,0.36007474]
[1728843945896,0.02983559,62614.0,62613.0,0.36007474]
[1728843946552,0.02583559,62614.0,62613.0,0.36007474]
[1728843946775,0.02583559,62614.0,62613.0,0.36207474]
[1728843947071,0.02583559,62614.0,62613.0,0.36007474]
[1728843947485,0.02583559,62614.0,62613.0,0.36407474]
[1728843948380,0.000819,62614.0,62613.0,0.36407474]
[1728843949071,0.000819,62614.0,62613.0,0.36607474]
[1728843949285,0.000819,62614.0,62613.0,0.55029875]
[1728843949510,0.000819,62614.0,62613.0,0.58231875]
[1728843950018,0.000819,62614.0,62613.0,0.61142078]
[1728843950247,0.000819,62614.0,62613.0,0.60742078]
[1728843950465,0.000819,62614.0,62613.0,0.59528107]
[1728843950677,0.000819,62614.0,62613.0,0.60528107]
[1728843950897,0.000819,62614.0,62613.0,0.59528107]
[1728843951361,0.000819,62614.0,62613.0,0.74154899]
[1728843951599,0.24042122,62627.0,62626.0,0.27281903]
[1728843951806,0.24042122,62627.0,62626.0,0.43951903]
[1728843952308,0.005,62633.0,62629.0,0.159669]
[1728843952309,0.264661,62633.0,62629.0,0.159669]
[1728843952538,0.264661,62633.0,62630.0,0.0901]
[1728843953196,0.005819,62633.0,62630.0,0.0901]
[1728843953472,0.005819,62633.0,62631.0,0.0766]
[1728843953708,0.007819,62633.0,62631.0,0.0766]
[1728843953922,0.159662,62632.0,62631.0,0.1525859]
[1728843954151,0.159662,62632.0,62631.0,0.0766]
[1728843954616,0.18467102,62632.0,62631.0,0.0766]
[1728843954859,0.18467102,62632.0,62626.0,0.24042122]
[1728843954860,0.319361,62625.0,62620.0,0.326392]
[1728843955074,0.005,62626.0,62621.0,0.159689]
[1728843955297,0.005,62626.0,62622.0,0.12055962]
[1728843955509,0.324358,62626.0,62622.0,0.12055962]
[1728843955726,0.159684,62624.0,62622.0,0.12055962]
[1728843956822,0.159684,62624.0,62622.0,0.12255962]
[1728843957238,0.324358,62626.0,62622.0,0.12255962]
[1728843957512,0.159681,62625.0,62623.0,0.06893708]
[1728843959258,0.162681,62625.0,62623.0,0.06893708]
[1728843959759,0.163681,62625.0,62623.0,0.06893708]
[1728843960699,0.159683,62624.0,62623.0,0.06893708]
[1728843960950,0.005,62622.0,62620.0,0.1667]
[1728843961168,0.15969,62621.0,62620.0,0.1667]
[1728843962957,0.15969,62621.0,62620.0,0.1677]
[1728843963175,0.15969,62621.0,62620.0,0.003]
[1728843963176,0.32591401,62621.0,62620.0,0.003]
[1728843963859,0.32591401,62621.0,62620.0,0.006]
[1728843964103,0.32591401,62621.0,62620.0,0.004]
[1728843964557,0.35192645,62621.0,62620.0,0.004]
[1728843964823,0.35092645,62621.0,62620.0,0.001]
[1728843965046,0.159696,62619.0,62616.0,0.327603]
[1728843965262,0.32092201,62618.0,62616.0,0.1679]
[1728843967067,0.16122401,62618.0,62616.0,0.1679]
[1728843967971,0.16122401,62618.0,62617.0,0.07632101]
[1728843967972,0.16092401,62618.0,62617.0,0.07632101]
[1728843968209,0.16222401,62618.0,62617.0,0.07632101]
[1728843968852,0.15992401,62618.0,62617.0,0.07632101]
[1728843969071,0.15932401,62618.0,62617.0,0.07632101]
[1728843969294,0.32102201,62618.0,62617.0,0.07632101]
[1728843969517,0.32092201,62618.0,62617.0,0.07632101]
[1728843969737,0.32042201,62618.0,62617.0,0.07632101]
[1728843969965,0.32002201,62618.0,62617.0,0.07632101]
[1728843970638,0.31942201,62618.0,62617.0,0.07632101]
[1728843970878,0.31942201,62618.0,62616.0,0.1679]
[1728843970879,0.31922201,62618.0,62616.0,0.1679]
[1728843971107,0.31912201,62618.0,62616.0,0.1679]
[1728843971341,0.31892201,62618.0,62616.0,0.1679]
[1728843971569,0.15872401,62618.0,62616.0,0.1679]
[1728843971799,0.15662401,62618.0,62616.0,0.1679]
[1728843972024,0.31612401,62618.0,62617.0,0.06035041]
[1728843972247,0.31792401,62618.0,62617.0,0.06035041]
[1728843972993,0.31592401,62618.0,62617.0,0.06035041]
[1728843974313,0.31792401,62618.0,62617.0,0.06035041]
[1728843974535,0.34293666,62618.0,62617.0,0.06035041]
[1728843976840,0.34293666,62618.0,62616.0,0.1679]
[1728843977682,0.34093666,62618.0,62616.0,0.1679]
[1728843978159,0.18323666,62618.0,62616.0,0.327601]
[1728843978389,0.18323666,62618.0,62616.0,0.1679]
[1728843978640,0.18323666,62618.0,62617.0,0.159701]
[1728843978897,0.18323666,62618.0,62617.0,0.332401]
[1728843978898,0.02701265,62618.0,62617.0,0.332401]
[1728843979117,0.02701265,62618.0,62617.0,0.34438166]
[1728843980233,0.002,62618.0,62617.0,0.34438166]
[1728843980471,0.002,62618.0,62617.0,0.35138166]
[1728843980910,0.005819,62625.0,62623.0,0.159683]
[1728843981340,0.005819,62625.0,62624.0,0.0931]
[1728843982052,0.000819,62625.0,62624.0,0.332383]
[1728843983433,0.000819,62625.0,62624.0,0.3443644]
[1728843983653,0.002819,62625.0,62624.0,0.332383]
[1728843984556,0.000819,62625.0,62624.0,0.332383]
[1728843984790,0.000819,62625.0,62624.0,0.48473155]
[1728843985017,0.000819,62625.0,62624.0,0.48573155]
[1728843985281,0.000819,62625.0,62624.0,0.4737496]
[1728843985509,0.000819,62625.0,62624.0,0.4767496]
[1728843985724,0.000819,62625.0,62624.0,0.48873159]
[1728843988902,0.000819,62625.0,62624.0,0.48872985]
[1728843992659,0.000819,62625.0,62624.0,0.4767496]
[1728843992878,0.000819,62625.0,62624.0,0.48872407]
[1728843993087,0.000819,62625.0,62624.0,0.50788297]
[1728843993324,0.000819,62625.0,62624.0,0.48872407]
[1728843993537,0.000819,62625.0,62624.0,0.50788]
[1728843994660,0.000819,62625.0,62624.0,0.48872407]
[1728844004173,0.000819,62625.0,62624.0,0.4767496]
[1728844004427,0.000819,62625.0,62624.0,0.48872103]
[1728844005346,0.000819,62625.0,62624.0,0.50787967]
[1728844011879,0.000819,62625.0,62624.0,0.50791804]
[1728844014549,0.000819,62625.0,62624.0,0.62105907]
[1728844015811,0.000819,62625.0,62624.0,0.62106858]
[1728844018599,0.000819,62625.0,62624.0,0.62006858]
[1728844018836,0.000819,62625.0,62624.0,0.62506858]
[1728844019682,0.000819,62625.0,62624.0,0.51192755]
[1728844019900,0.000819,62625.0,62624.0,0.62506858]
[1728844020127,0.000819,62625.0,62624.0,0.62206858]
[1728844020538,0.000819,62625.0,62624.0,0.62906858]
[1728844022298,0.000819,62625.0,62624.0,0.62908835]
[1728844026009,0.000819,62625.0,62624.0,0.59789063]
[1728844026240,0.000819,62625.0,62624.0,0.62908723]
[1728844029798,0.000819,62625.0,62624.0,0.59789063]
[1728844030033,0.000819,62625.0,62624.0,0.6290858]
[1728844031327,0.000819,62625.0,62624.0,0.87799438]
[1728844031983,0.000819,62625.0,62624.0,0.87809327]
[1728844032189,0.000819,62625.0,62624.0,0.80614621]
[1728844032605,0.000819,62625.0,62624.0,0.87809]
[1728844033449,0.000819,62625.0,62624.0,0.84689483]
[1728844033678,0.000819,62625.0,62624.0,0.87807052]
[1728844034598,0.000819,62625.0,62624.0,1.41585628]
[1728844034824,0.000819,62633.0,62632.0,0.58344406]
[1728844035026,0.000819,62633.0,62632.0,0.95290557]
[1728844035238,0.000819,62633.0,62632.0,1.06479953]
[1728844035468,0.000819,62633.0,62632.0,1.07279344]
[1728844035674,0.000819,62633.0,62632.0,0.95290557]
[1728844035923,0.000819,62633.0,62632.0,1.0372978]
[1728844036132,0.000819,62633.0,62632.0,1.0432978]
[1728844036356,0.000819,62633.0,62632.0,0.81101574]
[1728844036565,0.000819,62633.0,62632.0,1.04625095]
[1728844036772,0.000819,62633.0,62632.0,1.05725095]
[1728844036977,0.000819,62633.0,62632.0,1.15306954]
[1728844037205,0.000819,62633.0,62632.0,1.09798559]
[1728844037458,0.000819,62633.0,62632.0,0.71860976]
[1728844037660,0.000819,62633.0,62632.0,0.5828255]
[1728844037871,0.000819,62633.0,62632.0,0.69596653]
[1728844038081,0.000819,62633.0,62632.0,0.69595712]
[1728844038288,0.000819,62633.0,62632.0,0.74385446]
[1728844038536,0.000819,62633.0,62632.0,0.74385359]
[1728844039438,0.000819,62633.0,62632.0,0.63071256]
[1728844039669,0.000819,62633.0,62632.0,0.58281609]
[1728844040540,0.000819,62633.0,62632.0,0.69595712]
[1728844040764,0.000819,62633.0,62632.0,0.58281609]
[1728844040991,0.000819,62633.0,62632.0,0.55169526]
[1728844041198,0.000819,62633.0,62632.0,0.58279673]
[1728844042317,0.000819,62633.0,62632.0,0.69593776]
[1728844042671,0.000819,62633.0,62632.0,0.58279673]
[1728844044425,0.02582314,62633.0,62632.0,0.58279673]
[1728844044852,0.02582314,62633.0,62632.0,0.5827832]
[1728844046166,0.02582314,62633.0,62632.0,0.69592423]
[1728844046389,0.000819,62633.0,62632.0,0.69592423]
[1728844049154,0.000819,62633.0,62632.0,0.5827832]
[1728844050814,0.000819,62633.0,62632.0,0.69592423]
[1728844053523,0.000819,62633.0,62632.0,0.88014824]
[1728844054423,0.000819,62633.0,62632.0,0.90406666]
[1728844055759,0.000819,62633.0,62632.0,0.6777846]
[1728844055970,0.000819,62633.0,62632.0,0.55169526]
[1728844056176,0.000819,62633.0,62632.0,0.60671666]
[1728844056387,0.000819,62633.0,62632.0,0.58279431]
[1728844058915,0.000819,62633.0,62632.0,0.58281857]
[1728844059381,0.000819,62633.0,62632.0,0.60676651]
[1728844059614,0.000819,62633.0,62632.0,0.58281857]
[1728844060083,0.000819,62633.0,62632.0,0.88018361]
[1728844060520,0.000819,62633.0,62632.0,0.90413178]
[1728844062438,0.000819,62633.0,62632.0,0.90416615]
[1728844071634,0.000819,62633.0,62632.0,0.95198585]
[1728844072959,0.000819,62633.0,62632.0,0.90416615]
[1728844073586,0.000819,62633.0,62632.0,0.9758957]
[1728844074738,0.000819,62633.0,62632.0,1.08095931]
[1728844075611,0.000819,62633.0,62632.0,1.08293931]
[1728844076049,0.000819,62633.0,62632.0,1.30248856]
[1728844076727,0.000819,62633.0,62632.0,1.18293931]
[1728844076950,0.000819,62633.0,62632.0,1.23289191]
[1728844078480,0.000819,62633.0,62632.0,1.23292389]
[1728844079148,0.000819,62633.0,62632.0,1.23094389]
[1728844079607,0.000819,62633.0,62632.0,1.23292389]
[1728844080684,0.000819,62633.0,62632.0,1.23094389]
[1728844081112,0.000819,62633.0,62632.0,1.23111502]
[1728844081970,0.000819,62633.0,62632.0,1.18116242]
[1728844082639,0.000819,62633.0,62632.0,1.06802139]
[1728844083697,0.000819,62633.0,62632.0,0.88379738]
[1728844083905,0.000819,62633.0,62632.0,0.60929738]
[1728844084133,0.000819,62633.0,62632.0,0.72915162]
[1728844084359,0.000819,62633.0,62632.0,0.60929738]
[1728844084624,0.000819,62633.0,62632.0,0.70518946]
[1728844084834,0.000819,62633.0,62632.0,0.70518267]
[1728844086791,0.000819,62633.0,62632.0,0.59204164]
[1728844087003,0.000819,62633.0,62632.0,0.34316548]
[1728844087231,0.000819,62633.0,62632.0,0.29521525]
[1728844087476,0.000819,62633.0,62632.0,0.13555325]
[1728844087685,0.097819,62633.0,62632.0,0.02298501]
[1728844088121,0.097819,62633.0,62632.0,0.01798501]
[1728844088122,0.000819,62633.0,62632.0,0.01798501]
[1728844088353,0.000819,62633.0,62632.0,0.02398501]
[1728844088568,0.000819,62633.0,62632.0,0.07825071]
[1728844088987,0.000819,62633.0,62632.0,0.08025071]
[1728844089208,0.000819,62633.0,62632.0,0.07825071]
[1728844089632,0.000819,62633.0,62632.0,0.17164701]
[1728844090077,0.000819,62633.0,62632.0,0.01198501]
[1728844090417,0.000819,62633.0,62631.0,0.159664]
[1728844091226,0.000819,62633.0,62632.0,0.159662]
[1728844092002,0.000819,62633.0,62626.0,0.55977322]
[1728844092003,0.000819,62633.0,62629.0,0.31934]
[1728844092225,0.000819,62633.0,62631.0,0.159665]
[1728844092873,0.005819,62633.0,62631.0,0.159664]
[1728844093082,0.005819,62633.0,62630.0,0.09594909]
[1728844093083,0.159663,62632.0,62630.0,0.09594909]
[1728844093295,0.159663,62632.0,62631.0,0.05749731]
[1728844093956,0.159663,62632.0,62628.0,0.159672]
[1728844094163,0.005819,62633.0,62629.0,0.01196652]
[1728844094349,0.005819,62633.0,62627.0,0.319348]
[1728844094350,0.005819,62633.0,62630.0,0.319335]
[1728844094573,0.005819,62633.0,62630.0,0.479]
[1728844094793,0.005819,62633.0,62631.0,0.159663]
[1728844094997,0.005819,62633.0,62631.0,0.160663]
[1728844095390,0.005819,62633.0,62630.0,0.319335]
[1728844095636,0.005819,62633.0,62632.0,0.159662]
[1728844097008,0.005819,62633.0,62627.0,0.319348]
[1728844097465,0.005819,62633.0,62629.0,0.31934]
[1728844097691,0.005819,62633.0,62630.0,0.08807472]
[1728844097942,0.005819,62633.0,62630.0,0.24774072]
[1728844098839,0.005819,62633.0,62631.0,0.159664]
[1728844099524,0.006819,62633.0,62631.0,0.159664]
[1728844099741,0.005819,62633.0,62631.0,0.159664]
[1728844100023,0.005819,62633.0,62632.0,0.08864227]
[1728844100235,0.006819,62633.0,62632.0,0.08864227]
[1728844101305,0.005819,62633.0,62632.0,0.08864227]
[1728844101537,0.006819,62633.0,62632.0,0.08864227]
[1728844104559,0.0318261,62633.0,62632.0,0.08864227]
[1728844106046,0.0318261,62633.0,62631.0,0.159664]
[1728844107015,0.0318261,62633.0,62632.0,0.159662]
[1728844107245,0.0318261,62633.0,62632.0,0.27280303]
[1728844107452,0.0258261,62633.0,62632.0,0.35560303]
[1728844107681,0.0268261,62633.0,62632.0,0.3675511]
[1728844107890,0.0268261,62633.0,62632.0,0.51803568]
[1728844108539,0.0258261,62633.0,62632.0,0.51803568]
[1728844108770,0.001819,62633.0,62632.0,0.51803568]
[1728844108974,0.000819,62633.0,62632.0,0.51803568]
[1728844110008,0.000819,62633.0,62632.0,0.74537671]
[1728844110219,0.000819,62633.0,62632.0,0.76448805]
[1728844110913,0.000819,62633.0,62632.0,0.79651805]
[1728844111128,0.000819,62633.0,62632.0,0.79651106]
[1728844111556,0.000819,62633.0,62632.0,0.80651106]
[1728844111735,0.000819,62633.0,62632.0,0.79651106]
[1728844112175,0.000819,62633.0,62632.0,0.80851106]
[1728844112382,0.000819,62633.0,62632.0,0.83239754]
[1728844112873,0.000819,62633.0,62632.0,0.80851106]
[1728844113003,0.000819,62633.0,62632.0,0.84239754]
[1728844113217,0.000819,62633.0,62632.0,0.81851106]
[1728844113427,0.000819,62633.0,62632.0,0.84239754]
[1728844115640,0.000819,62633.0,62632.0,0.72925651]
[1728844116487,0.000819,62633.0,62632.0,0.84239754]
[1728844117547,0.000819,62633.0,62632.0,0.81851106]